[Event "Live Chess"]
[Site "Chess.com"]
[Date "2023.05.20"]
[Round "-"]
[White "booktrunk"]
[Black "VovaOvchar1990"]
[Result "0-1"]
[WhiteElo "1320"]
[BlackElo "1213"]
[TimeControl "300"]
[EndTime "11:42:03 PDT"]
[Termination "VovaOvchar1990 won by checkmate"]

1. d4 {[%clk 0:04:56.7]} 1... d5 {[%clk 0:04:58]} 2. c3 {[%clk 0:04:55.8]} 2...
Bf5 {[%clk 0:04:57]} 3. Bf4 {[%clk 0:04:54.4]} 3... Nc6 {[%clk 0:04:53.9]} 4. h3
{[%clk 0:04:53.5]} 4... Nf6 {[%clk 0:04:52.3]} 5. Nf3 {[%clk 0:04:50.4]} 5... e6
{[%clk 0:04:49.5]} 6. a3 {[%clk 0:04:45]} 6... a6 {[%clk 0:04:48]} 7. e3 {[%clk
0:04:43.9]} 7... Ne4 {[%clk 0:04:45.4]} 8. Bd3 {[%clk 0:04:40.5]} 8... Nd6
{[%clk 0:04:36.3]} 9. Bxf5 {[%clk 0:04:38.8]} 9... Nxf5 {[%clk 0:04:34.7]} 10.
O-O {[%clk 0:04:31.8]} 10... Bd6 {[%clk 0:04:31.7]} 11. Bxd6 {[%clk 0:04:30.3]}
11... Qxd6 {[%clk 0:04:30.5]} 12. Qd3 {[%clk 0:04:28.9]} 12... O-O {[%clk
0:04:26]} 13. Re1 {[%clk 0:04:28.1]} 13... h6 {[%clk 0:04:24.4]} 14. e4 {[%clk
0:04:27.3]} 14... dxe4 {[%clk 0:04:22.3]} 15. Rxe4 {[%clk 0:04:25.5]} 15... f6
{[%clk 0:04:07.9]} 16. Nbd2 {[%clk 0:04:24]} 16... e5 {[%clk 0:03:57.8]} 17. d5
{[%clk 0:04:22.1]} 17... Nce7 {[%clk 0:03:46]} 18. c4 {[%clk 0:04:19.5]} 18...
c6 {[%clk 0:03:42]} 19. b3 {[%clk 0:04:16.4]} 19... cxd5 {[%clk 0:03:38.8]} 20.
cxd5 {[%clk 0:04:15.3]} 20... Nxd5 {[%clk 0:03:36.5]} 21. Nc4 {[%clk 0:04:14.1]}
21... Qd8 {[%clk 0:03:03.3]} 22. Rd1 {[%clk 0:04:10.5]} 22... Nfe7 {[%clk
0:02:59.6]} 23. b4 {[%clk 0:03:59.1]} 23... b5 {[%clk 0:02:46.9]} 24. Na5 {[%clk
0:03:55.8]} 24... Nf4 {[%clk 0:02:36.3]} 25. Qxd8 {[%clk 0:03:35.8]} 25... Rfxd8
{[%clk 0:02:33.8]} 26. Rxd8+ {[%clk 0:03:34.9]} 26... Rxd8 {[%clk 0:02:32.3]}
27. Kh2 {[%clk 0:03:33.9]} 27... Rd3 {[%clk 0:02:23]} 28. Re3 {[%clk 0:03:24.8]}
28... Rxe3 {[%clk 0:02:01]} 29. fxe3 {[%clk 0:03:23.5]} 29... Nfd5 {[%clk
0:01:58.3]} 30. e4 {[%clk 0:03:22.8]} 30... Nc3 {[%clk 0:01:55.7]} 31. Nd2
{[%clk 0:03:21.9]} 31... Nc8 {[%clk 0:01:43.6]} 32. Nc6 {[%clk 0:03:20.3]} 32...
Nb6 {[%clk 0:01:28.2]} 33. Nb8 {[%clk 0:03:18.8]} 33... Nc4 {[%clk 0:01:22.8]}
34. Nxc4 {[%clk 0:03:17.3]} 34... bxc4 {[%clk 0:01:18.5]} 35. Nxa6 {[%clk
0:03:16.6]} 35... Nxe4 {[%clk 0:01:07.2]} 36. b5 {[%clk 0:03:11.2]} 36... c3
{[%clk 0:01:05.7]} 37. b6 {[%clk 0:03:10.5]} 37... c2 {[%clk 0:01:04.1]} 38. b7
{[%clk 0:03:09.8]} 38... c1=Q {[%clk 0:00:56.7]} 39. b8=Q+ {[%clk 0:03:08]}
39... Kh7 {[%clk 0:00:54.9]} 40. Qb4 {[%clk 0:03:01.5]} 40... Qf4+ {[%clk
0:00:48.3]} 41. Kh1 {[%clk 0:02:58.9]} 41... Ng3+ {[%clk 0:00:46.1]} 42. Kh2
{[%clk 0:02:56.4]} 42... Ne2+ {[%clk 0:00:44]} 43. Kh1 {[%clk 0:02:53.5]} 43...
Qf1+ {[%clk 0:00:38.6]} 44. Kh2 {[%clk 0:02:52.2]} 44... Qg1# {[%clk 0:00:37.9]}
0-1

[Event "Live Chess"]
[Site "Chess.com"]
[Date "2023.05.20"]
[Round "-"]
[White "KeithArkell"]
[Black "Trendle"]
[Result "0-1"]
[WhiteElo "2609"]
[BlackElo "2672"]
[TimeControl "300"]
[EndTime "11:42:05 PDT"]
[Termination "Trendle won by resignation"]

1. d4 {[%clk 0:04:57.9]} 1... e6 {[%clk 0:04:53.7]} 2. Nf3 {[%clk 0:04:56.8]}
2... f5 {[%clk 0:04:52.2]} 3. Bg5 {[%clk 0:04:55.2]} 3... Be7 {[%clk 0:04:51.3]}
4. Bxe7 {[%clk 0:04:54.1]} 4... Qxe7 {[%clk 0:04:51.2]} 5. Nbd2 {[%clk
0:04:52.9]} 5... Nf6 {[%clk 0:04:50.7]} 6. e3 {[%clk 0:04:52.5]} 6... b6 {[%clk
0:04:48.4]} 7. Bd3 {[%clk 0:04:51.6]} 7... Bb7 {[%clk 0:04:48.1]} 8. c3 {[%clk
0:04:51.2]} 8... O-O {[%clk 0:04:47.1]} 9. Qc2 {[%clk 0:04:50.7]} 9... c5 {[%clk
0:04:25]} 10. e4 {[%clk 0:04:48.3]} 10... cxd4 {[%clk 0:04:22.3]} 11. Nxd4
{[%clk 0:04:47.2]} 11... fxe4 {[%clk 0:04:14.6]} 12. Nxe4 {[%clk 0:04:46.1]}
12... Nd5 {[%clk 0:04:13.1]} 13. g3 {[%clk 0:04:39.5]} 13... Nc6 {[%clk
0:04:02.6]} 14. Nxc6 {[%clk 0:04:37.7]} 14... Bxc6 {[%clk 0:04:02.4]} 15. O-O
{[%clk 0:04:36.4]} 15... Rf3 {[%clk 0:03:48.9]} 16. Be2 {[%clk 0:04:26.2]} 16...
Rf5 {[%clk 0:03:47]} 17. f4 {[%clk 0:04:23.8]} 17... Raf8 {[%clk 0:03:39.9]} 18.
Qd3 {[%clk 0:03:36.5]} 18... Nxf4 {[%clk 0:02:49]} 19. gxf4 {[%clk 0:03:35.1]}
19... Rxf4 {[%clk 0:02:48.1]} 20. Ng3 {[%clk 0:03:33.3]} 20... Qc5+ {[%clk
0:02:44.9]} 0-1

[Event "Live Chess"]
[Site "Chess.com"]
[Date "2023.05.20"]
[Round "-"]
[White "Delacorta"]
[Black "Ferrarifan27"]
[Result "0-1"]
[WhiteElo "1390"]
[BlackElo "2104"]
[TimeControl "300"]
[EndTime "11:42:30 PDT"]
[Termination "Ferrarifan27 won by resignation"]

1. d4 {[%clk 0:04:58.9]} 1... Nf6 {[%clk 0:04:58.5]} 2. Nf3 {[%clk 0:04:58]}
2... d5 {[%clk 0:04:54.6]} 3. e3 {[%clk 0:04:56.8]} 3... Bf5 {[%clk 0:04:53.2]}
4. Bd3 {[%clk 0:04:55.6]} 4... Bxd3 {[%clk 0:04:51.2]} 5. cxd3 {[%clk
0:04:55.5]} 5... e6 {[%clk 0:04:50.6]} 6. O-O {[%clk 0:04:54.9]} 6... Be7 {[%clk
0:04:49.7]} 7. b3 {[%clk 0:04:54.1]} 7... O-O {[%clk 0:04:48.6]} 8. Ba3 {[%clk
0:04:49.4]} 8... c6 {[%clk 0:04:46.1]} 9. Bxe7 {[%clk 0:04:47.4]} 9... Qxe7
{[%clk 0:04:45.3]} 10. Nbd2 {[%clk 0:04:46.5]} 10... Nbd7 {[%clk 0:04:42.2]} 11.
Re1 {[%clk 0:04:45.2]} 11... e5 {[%clk 0:04:31.6]} 12. dxe5 {[%clk 0:04:43.7]}
12... Nxe5 {[%clk 0:04:31.5]} 13. Nxe5 {[%clk 0:04:40.7]} 13... Qxe5 {[%clk
0:04:31.4]} 14. d4 {[%clk 0:04:36.3]} 14... Qg5 {[%clk 0:04:29]} 15. Nf3 {[%clk
0:04:34.8]} 15... Qh5 {[%clk 0:04:26.3]} 16. Ne5 {[%clk 0:04:31.7]} 16... Qxd1
{[%clk 0:04:23.8]} 17. Raxd1 {[%clk 0:04:31.6]} 17... a5 {[%clk 0:04:19.1]} 18.
a3 {[%clk 0:04:29.8]} 18... Ne4 {[%clk 0:04:11.3]} 19. Nd7 {[%clk 0:04:25.8]}
19... Rfd8 {[%clk 0:04:08.6]} 20. Nb6 {[%clk 0:04:20.8]} 20... Ra6 {[%clk
0:04:06]} 21. Na4 {[%clk 0:04:19.7]} 21... Nd6 {[%clk 0:03:58.4]} 22. Nc5 {[%clk
0:04:16]} 22... Ra7 {[%clk 0:03:55.6]} 23. Ra1 {[%clk 0:04:09.5]} 23... Rda8
{[%clk 0:03:46.8]} 24. Nd7 {[%clk 0:04:06.2]} 24... a4 {[%clk 0:03:41.7]} 25. b4
{[%clk 0:04:03.5]} 25... f6 {[%clk 0:03:33.2]} 26. Nb6 {[%clk 0:04:02.4]} 26...
Re8 {[%clk 0:03:27.2]} 27. Rac1 {[%clk 0:04:00.2]} 27... Nb5 {[%clk 0:03:23.2]}
28. Ra1 {[%clk 0:03:44.3]} 28... Rd8 {[%clk 0:03:22]} 29. Kf1 {[%clk 0:03:37.1]}
29... Ra6 {[%clk 0:03:19.7]} 0-1

[Event "Live Chess"]
[Site "Chess.com"]
[Date "2023.05.20"]
[Round "-"]
[White "ACx04"]
[Black "ramses-IIG"]
[Result "1-0"]
[WhiteElo "417"]
[BlackElo "797"]
[TimeControl "300"]
[EndTime "11:42:32 PDT"]
[Termination "ACx04 won by resignation"]

1. e4 {[%clk 0:04:55]} 1... d5 {[%clk 0:04:59.9]} 2. exd5 {[%clk 0:04:52.8]}
2... Qxd5 {[%clk 0:04:59.8]} 3. Nc3 {[%clk 0:04:51.4]} 3... Qe6+ {[%clk
0:04:59.7]} 4. Be2 {[%clk 0:04:49.7]} 4... Qg6 {[%clk 0:04:59.6]} 5. g3 {[%clk
0:04:43.6]} 5... c6 {[%clk 0:04:57.4]} 6. f4 {[%clk 0:04:41.7]} 6... e6 {[%clk
0:04:55.5]} 7. Bh5 {[%clk 0:04:39.8]} 7... Qf6 {[%clk 0:04:44.3]} 8. d4 {[%clk
0:04:34.8]} 8... g6 {[%clk 0:04:32.5]} 9. Bf3 {[%clk 0:04:32.3]} 9... Bg7 {[%clk
0:04:25.9]} 10. Nge2 {[%clk 0:04:28.3]} 10... Qd8 {[%clk 0:04:23.5]} 11. Kf1
{[%clk 0:04:27.3]} 11... Nf6 {[%clk 0:04:20.4]} 12. h3 {[%clk 0:04:24.6]} 12...
O-O {[%clk 0:04:19.2]} 13. Kg2 {[%clk 0:04:22.4]} 13... h5 {[%clk 0:04:16.7]}
14. h4 {[%clk 0:04:21.2]} 14... Na6 {[%clk 0:04:10]} 15. Ng1 {[%clk 0:04:16.3]}
15... Nb4 {[%clk 0:03:53.5]} 16. a3 {[%clk 0:04:13]} 16... Na6 {[%clk
0:03:51.7]} 17. b4 {[%clk 0:04:11.5]} 17... Nc7 {[%clk 0:03:33.6]} 18. Be3
{[%clk 0:03:55.9]} 18... Qd7 {[%clk 0:03:28.6]} 19. g4 {[%clk 0:03:50]} 19...
hxg4 {[%clk 0:03:25]} 20. Bxg4 {[%clk 0:03:49]} 20... Qd6 {[%clk 0:03:11.5]} 21.
Bf3 {[%clk 0:03:46.8]} 21... Ncd5 {[%clk 0:02:56.8]} 22. Nxd5 {[%clk 0:03:44.9]}
22... cxd5 {[%clk 0:02:56]} 23. c3 {[%clk 0:03:41.9]} 23... Re8 {[%clk
0:02:48.9]} 24. Qe2 {[%clk 0:03:38.4]} 24... Ne4 {[%clk 0:02:44]} 25. Bxe4
{[%clk 0:03:35.9]} 25... dxe4 {[%clk 0:02:43.9]} 26. Qd2 {[%clk 0:03:28.4]}
26... Qe7 {[%clk 0:02:25.1]} 27. Ne2 {[%clk 0:03:25.8]} 27... Qxh4 {[%clk
0:02:22.2]} 28. Rxh4 {[%clk 0:03:24.5]} 1-0

[Event "Live Chess"]
[Site "Chess.com"]
[Date "2023.05.20"]
[Round "-"]
[White "AbilifyXL"]
[Black "ClassyChameleon"]
[Result "1-0"]
[WhiteElo "1942"]
[BlackElo "1065"]
[TimeControl "300"]
[EndTime "11:42:32 PDT"]
[Termination "AbilifyXL won by resignation"]

1. d4 {[%clk 0:04:58.2]} 1... d5 {[%clk 0:04:56.2]} 2. c4 {[%clk 0:04:57.8]}
2... e6 {[%clk 0:04:55.3]} 3. Nc3 {[%clk 0:04:57.3]} 3... c6 {[%clk 0:04:54.7]}
4. cxd5 {[%clk 0:04:56.9]} 4... cxd5 {[%clk 0:04:53.8]} 5. Nf3 {[%clk
0:04:56.6]} 5... a6 {[%clk 0:04:51.6]} 6. Bg5 {[%clk 0:04:55.8]} 6... b6 {[%clk
0:04:50.4]} 7. Bxd8 {[%clk 0:04:50.8]} 7... Kxd8 {[%clk 0:04:45.1]} 8. e4 {[%clk
0:04:47.4]} 8... dxe4 {[%clk 0:04:43.3]} 9. Nxe4 {[%clk 0:04:45.9]} 9... Nc6
{[%clk 0:04:42.3]} 10. Be2 {[%clk 0:04:44.6]} 10... Nxd4 {[%clk 0:04:41]} 11.
Qxd4+ {[%clk 0:04:42.9]} 11... Bd6 {[%clk 0:04:39.4]} 1-0

[Event "Live Chess"]
[Site "Chess.com"]
[Date "2023.05.20"]
[Round "-"]
[White "LiamBellwood"]
[Black "LaupMiths"]
[Result "1-0"]
[WhiteElo "2091"]
[BlackElo "1821"]
[TimeControl "300"]
[EndTime "11:42:33 PDT"]
[Termination "LiamBellwood won by checkmate"]

1. d4 {[%clk 0:04:55.7]} 1... d5 {[%clk 0:04:57.8]} 2. Nc3 {[%clk 0:04:55.1]}
2... Nf6 {[%clk 0:04:54.6]} 3. Bf4 {[%clk 0:04:54.7]} 3... c6 {[%clk 0:04:53.3]}
4. e3 {[%clk 0:04:53.9]} 4... Bf5 {[%clk 0:04:52]} 5. f3 {[%clk 0:04:53.3]} 5...
h6 {[%clk 0:04:49.7]} 6. g4 {[%clk 0:04:52.1]} 6... Bg6 {[%clk 0:04:48.4]} 7.
Bd3 {[%clk 0:04:52]} 7... Bxd3 {[%clk 0:04:46.3]} 8. Qxd3 {[%clk 0:04:51.9]}
8... e6 {[%clk 0:04:45.5]} 9. h4 {[%clk 0:04:51]} 9... Bd6 {[%clk 0:04:44.6]}
10. Nge2 {[%clk 0:04:50.7]} 10... Bxf4 {[%clk 0:04:42.5]} 11. Nxf4 {[%clk
0:04:50.6]} 11... Qb6 {[%clk 0:04:29.4]} 12. O-O-O {[%clk 0:04:49.5]} 12... a6
{[%clk 0:04:26.7]} 13. g5 {[%clk 0:04:49]} 13... Nfd7 {[%clk 0:04:23.6]} 14. g6
{[%clk 0:04:46.8]} 14... O-O {[%clk 0:04:14.5]} 15. gxf7+ {[%clk 0:04:42.5]}
15... Rxf7 {[%clk 0:04:14.4]} 16. Qg6 {[%clk 0:04:16.8]} 16... Nf8 {[%clk
0:04:10]} 17. Qg4 {[%clk 0:04:14.5]} 17... Rf6 {[%clk 0:04:05.3]} 18. h5 {[%clk
0:04:09.1]} 18... Qc7 {[%clk 0:04:03.4]} 19. Rhg1 {[%clk 0:04:04.4]} 19... Qf7
{[%clk 0:04:00.1]} 20. Nd3 {[%clk 0:03:51.8]} 20... Nbd7 {[%clk 0:03:58.9]} 21.
f4 {[%clk 0:03:44.5]} 21... Re8 {[%clk 0:03:54.5]} 22. Rg2 {[%clk 0:03:34.9]}
22... Rf5 {[%clk 0:03:51.9]} 23. Rdg1 {[%clk 0:03:31.4]} 23... Re7 {[%clk
0:03:50.6]} 24. Ne5 {[%clk 0:03:29.7]} 24... Nxe5 {[%clk 0:03:40.3]} 25. fxe5
{[%clk 0:03:19.1]} 25... Qxh5 {[%clk 0:03:33.5]} 26. Qxg7+ {[%clk 0:03:02.9]}
26... Rxg7 {[%clk 0:03:28.5]} 27. Rxg7+ {[%clk 0:03:02.8]} 27... Kh8 {[%clk
0:03:27.6]} 28. Rg8+ {[%clk 0:03:02.7]} 28... Kh7 {[%clk 0:03:25.9]} 29. R1g7#
{[%clk 0:03:02.6]} 1-0

[Event "Live Chess"]
[Site "Chess.com"]
[Date "2023.05.20"]
[Round "-"]
[White "OleksiyJr1"]
[Black "dudeasy"]
[Result "1-0"]
[WhiteElo "932"]
[BlackElo "995"]
[TimeControl "300"]
[EndTime "11:42:34 PDT"]
[Termination "OleksiyJr1 won on time"]

1. e4 {[%clk 0:04:58.9]} 1... c5 {[%clk 0:04:57.1]} 2. Nf3 {[%clk 0:04:58.4]}
2... d6 {[%clk 0:04:54.7]} 3. Bc4 {[%clk 0:04:56.1]} 3... Nf6 {[%clk 0:04:51.1]}
4. d4 {[%clk 0:04:55.6]} 4... cxd4 {[%clk 0:04:49.5]} 5. Qxd4 {[%clk 0:04:54.6]}
5... Nc6 {[%clk 0:04:48.4]} 6. Bb5 {[%clk 0:04:52.5]} 6... g6 {[%clk 0:04:29.5]}
7. Nc3 {[%clk 0:04:44.2]} 7... Bd7 {[%clk 0:04:28.4]} 8. Bxc6 {[%clk 0:04:41.6]}
8... Bxc6 {[%clk 0:04:26.8]} 9. Qe3 {[%clk 0:04:36.6]} 9... Bg7 {[%clk
0:04:25.5]} 10. O-O {[%clk 0:04:34.7]} 10... O-O {[%clk 0:04:24]} 11. Re1 {[%clk
0:04:33.5]} 11... Qc7 {[%clk 0:04:17]} 12. h3 {[%clk 0:04:31.6]} 12... Rad8
{[%clk 0:04:12.4]} 13. b3 {[%clk 0:04:25.7]} 13... a6 {[%clk 0:04:09.4]} 14. Bb2
{[%clk 0:04:23.6]} 14... Rfe8 {[%clk 0:04:06.5]} 15. Rad1 {[%clk 0:04:21.8]}
15... Qc8 {[%clk 0:03:42]} 16. e5 {[%clk 0:04:09.3]} 16... dxe5 {[%clk
0:03:38.8]} 17. Rxd8 {[%clk 0:04:07]} 17... Qxd8 {[%clk 0:03:34.6]} 18. Nxe5
{[%clk 0:04:05.1]} 18... Qd6 {[%clk 0:03:30.9]} 19. Nxc6 {[%clk 0:04:03.6]}
19... Qxc6 {[%clk 0:03:28.9]} 20. Ne4 {[%clk 0:03:55.3]} 20... Nxe4 {[%clk
0:03:01]} 21. Bxg7 {[%clk 0:03:51.8]} 21... Kxg7 {[%clk 0:03:00.1]} 22. Qxe4
{[%clk 0:03:50.7]} 22... Qxe4 {[%clk 0:02:57.3]} 23. Rxe4 {[%clk 0:03:50.6]}
23... e6 {[%clk 0:02:54]} 24. Rc4 {[%clk 0:03:48.2]} 24... Re7 {[%clk
0:02:51.9]} 25. Kf1 {[%clk 0:03:45.5]} 25... Rd7 {[%clk 0:02:50.9]} 26. Ke2
{[%clk 0:03:39.5]} 26... Kf6 {[%clk 0:02:48.2]} 27. g4 {[%clk 0:03:37.1]} 27...
Kg5 {[%clk 0:02:45.3]} 28. f4+ {[%clk 0:03:34.7]} 28... Kh4 {[%clk 0:02:43.9]}
29. Rc3 {[%clk 0:03:31.9]} 29... h5 {[%clk 0:02:38.8]} 30. gxh5 {[%clk
0:03:21.1]} 30... Kxh5 {[%clk 0:02:37.3]} 31. Kf3 {[%clk 0:03:20.3]} 31... Kh4
{[%clk 0:02:14.1]} 32. Kg2 {[%clk 0:03:15.9]} 32... Rd2+ {[%clk 0:02:04.3]} 33.
Kf3 {[%clk 0:03:12.7]} 33... Rd7 {[%clk 0:01:51.1]} 34. Kg2 {[%clk 0:03:08.3]}
34... g5 {[%clk 0:01:46.5]} 35. fxg5 {[%clk 0:03:02.7]} 35... Kxg5 {[%clk
0:01:44.7]} 36. Kg3 {[%clk 0:03:00.9]} 36... Kf6 {[%clk 0:01:38.9]} 37. Kg4
{[%clk 0:02:59.3]} 37... Rd4+ {[%clk 0:01:34.6]} 38. Kg3 {[%clk 0:02:48.3]}
38... b5 {[%clk 0:01:23.8]} 39. h4 {[%clk 0:02:44.3]} 39... a5 {[%clk 0:01:12]}
40. h5 {[%clk 0:02:21.7]} 40... b4 {[%clk 0:01:08.9]} 41. Rc7 {[%clk 0:02:16.5]}
41... Rd5 {[%clk 0:01:06.6]} 42. Kh4 {[%clk 0:02:13.7]} 42... Rd4+ {[%clk
0:01:02.3]} 43. Kg3 {[%clk 0:02:11.4]} 43... Rd5 {[%clk 0:01:01]} 44. h6 {[%clk
0:02:04.2]} 44... Rh5 {[%clk 0:00:59.2]} 45. Ra7 {[%clk 0:02:00]} 45... Kg6
{[%clk 0:00:52.7]} 46. Kg4 {[%clk 0:01:32.9]} 46... Rg5+ {[%clk 0:00:37.8]} 47.
Kf4 {[%clk 0:01:27.1]} 47... Rf5+ {[%clk 0:00:36.6]} 48. Ke4 {[%clk 0:01:25.4]}
48... Kxh6 {[%clk 0:00:35.5]} 49. Kd4 {[%clk 0:01:19.5]} 49... Kg6 {[%clk
0:00:34.3]} 50. Kc4 {[%clk 0:01:17.4]} 50... Kf6 {[%clk 0:00:32.2]} 51. c3
{[%clk 0:01:16.7]} 51... bxc3 {[%clk 0:00:28.8]} 52. Kxc3 {[%clk 0:01:16.2]}
52... Rc5+ {[%clk 0:00:21.6]} 53. Kd4 {[%clk 0:01:14.2]} 53... Rd5+ {[%clk
0:00:20]} 54. Ke4 {[%clk 0:01:12.9]} 54... Re5+ {[%clk 0:00:19.2]} 55. Kd4
{[%clk 0:01:12.1]} 55... Rd5+ {[%clk 0:00:18.5]} 56. Kc3 {[%clk 0:01:11.3]}
56... Rc5+ {[%clk 0:00:17.8]} 57. Kb2 {[%clk 0:01:10.4]} 57... Re5 {[%clk
0:00:17.1]} 58. Ka3 {[%clk 0:01:08.6]} 58... Rd5 {[%clk 0:00:15.7]} 59. Ka4
{[%clk 0:01:06.9]} 59... Ke5 {[%clk 0:00:14.6]} 60. Rxa5 {[%clk 0:01:05.5]}
60... Rxa5+ {[%clk 0:00:14]} 61. Kxa5 {[%clk 0:01:05.4]} 61... f5 {[%clk
0:00:13.1]} 62. b4 {[%clk 0:01:04.7]} 62... f4 {[%clk 0:00:12.7]} 63. b5 {[%clk
0:01:04.3]} 63... f3 {[%clk 0:00:11.3]} 64. b6 {[%clk 0:01:03.9]} 64... f2
{[%clk 0:00:11]} 65. b7 {[%clk 0:01:03.6]} 65... f1=Q {[%clk 0:00:10.3]} 66.
b8=Q+ {[%clk 0:01:02.4]} 66... Kd5 {[%clk 0:00:08.5]} 67. Qb7+ {[%clk
0:00:57.3]} 67... Ke5 {[%clk 0:00:07.7]} 68. Qb5+ {[%clk 0:00:54.1]} 68... Qxb5+
{[%clk 0:00:06.6]} 69. Kxb5 {[%clk 0:00:44]} 69... Kd4 {[%clk 0:00:06.2]} 70. a4
{[%clk 0:00:43.9]} 70... e5 {[%clk 0:00:05.7]} 71. a5 {[%clk 0:00:41.5]} 71...
e4 {[%clk 0:00:05.4]} 72. a6 {[%clk 0:00:41.2]} 72... e3 {[%clk 0:00:05]} 73. a7
{[%clk 0:00:41.1]} 73... e2 {[%clk 0:00:04.6]} 74. a8=Q {[%clk 0:00:41]} 74...
e1=Q {[%clk 0:00:03.6]} 75. Qd8+ {[%clk 0:00:40.1]} 75... Kc3 {[%clk 0:00:02.8]}
76. Qc7+ {[%clk 0:00:38.7]} 76... Kd2 {[%clk 0:00:02.1]} 77. Qd6+ {[%clk
0:00:35.7]} 77... Ke2 {[%clk 0:00:00.1]} 78. Qe5+ {[%clk 0:00:34.4]} 1-0

[Event "Live Chess"]
[Site "Chess.com"]
[Date "2023.05.20"]
[Round "-"]
[White "gmnorfolk"]
[Black "flyingpuffins"]
[Result "1-0"]
[WhiteElo "2117"]
[BlackElo "1963"]
[TimeControl "300"]
[EndTime "11:42:34 PDT"]
[Termination "gmnorfolk won by resignation"]

1. d4 {[%clk 0:04:57.6]} 1... d5 {[%clk 0:04:57.5]} 2. c4 {[%clk 0:04:56.9]}
2... c6 {[%clk 0:04:56.6]} 3. Nf3 {[%clk 0:04:55.1]} 3... Nf6 {[%clk 0:04:55.7]}
4. e3 {[%clk 0:04:52.1]} 4... Bf5 {[%clk 0:04:53.9]} 5. Nc3 {[%clk 0:04:50.2]}
5... e6 {[%clk 0:04:52.2]} 6. Nh4 {[%clk 0:04:48.4]} 6... Bg6 {[%clk 0:04:51.6]}
7. Nxg6 {[%clk 0:04:46.6]} 7... hxg6 {[%clk 0:04:51.5]} 8. Qb3 {[%clk
0:04:41.1]} 8... Qb6 {[%clk 0:04:47.4]} 9. c5 {[%clk 0:04:36.4]} 9... Qc7 {[%clk
0:04:42.8]} 10. g3 {[%clk 0:04:34.7]} 10... Nbd7 {[%clk 0:04:38.8]} 11. Bg2
{[%clk 0:04:33.5]} 11... Be7 {[%clk 0:04:30.5]} 12. Qc2 {[%clk 0:04:30.5]} 12...
O-O-O {[%clk 0:04:17.9]} 13. b4 {[%clk 0:04:27.5]} 13... e5 {[%clk 0:04:16.8]}
14. a4 {[%clk 0:04:23.8]} 14... e4 {[%clk 0:04:15]} 15. b5 {[%clk 0:04:19.8]}
15... Bxc5 {[%clk 0:04:07]} 16. bxc6 {[%clk 0:04:14.9]} 16... bxc6 {[%clk
0:04:03.4]} 17. dxc5 {[%clk 0:04:10.4]} 17... Nxc5 {[%clk 0:04:03.3]} 18. Bf1
{[%clk 0:04:07.6]} 18... Ng4 {[%clk 0:03:57]} 19. h3 {[%clk 0:04:03.6]} 19...
Ne5 {[%clk 0:03:54.6]} 20. Ba3 {[%clk 0:03:48]} 20... Ncd3+ {[%clk 0:03:39.5]}
21. Bxd3 {[%clk 0:03:46.9]} 21... Nxd3+ {[%clk 0:03:38.7]} 22. Ke2 {[%clk
0:03:43.7]} 22... Qd7 {[%clk 0:03:17.1]} 23. Rab1 {[%clk 0:03:21]} 23... Qf5
{[%clk 0:03:13.6]} 24. Nxe4 {[%clk 0:03:15.5]} 24... Kd7 {[%clk 0:02:27.2]} 25.
Qxd3 {[%clk 0:03:08.3]} 1-0

[Event "Live Chess"]
[Site "Chess.com"]
[Date "2023.05.20"]
[Round "-"]
[White "rideuv21"]
[Black "1600x"]
[Result "0-1"]
[WhiteElo "1822"]
[BlackElo "1638"]
[TimeControl "300"]
[EndTime "11:42:37 PDT"]
[Termination "1600x won by resignation"]

1. e4 {[%clk 0:04:59.1]} 1... e5 {[%clk 0:04:59]} 2. d4 {[%clk 0:04:57.9]} 2...
exd4 {[%clk 0:04:50.5]} 3. Nf3 {[%clk 0:04:55.7]} 3... Nc6 {[%clk 0:04:46.4]} 4.
Bc4 {[%clk 0:04:47.2]} 4... Nf6 {[%clk 0:04:44.7]} 5. e5 {[%clk 0:04:34.7]} 5...
d5 {[%clk 0:04:43]} 6. Bb5 {[%clk 0:04:33.3]} 6... Nd7 {[%clk 0:04:35.8]} 7. O-O
{[%clk 0:04:30.6]} 7... h6 {[%clk 0:04:28.5]} 8. Bxc6 {[%clk 0:04:29.3]} 8...
bxc6 {[%clk 0:04:27]} 9. Nxd4 {[%clk 0:04:29]} 9... Nb8 {[%clk 0:04:25.6]} 10.
e6 {[%clk 0:04:19.9]} 10... fxe6 {[%clk 0:04:24.1]} 11. Qh5+ {[%clk 0:04:17.9]}
11... Ke7 {[%clk 0:04:22.5]} 12. Bg5+ {[%clk 0:04:17.5]} 12... hxg5 {[%clk
0:04:20.7]} 13. Qxh8 {[%clk 0:04:17.4]} 13... c5 {[%clk 0:04:18.2]} 14. Nf3
{[%clk 0:04:16.2]} 14... Nc6 {[%clk 0:04:16.8]} 15. Nxg5 {[%clk 0:04:15.3]}
15... Qe8 {[%clk 0:04:15.5]} 16. Re1 {[%clk 0:04:13.2]} 16... Rb8 {[%clk
0:04:14]} 17. Nc3 {[%clk 0:04:10.8]} 17... Nd4 {[%clk 0:04:11.9]} 18. Nxd5+
{[%clk 0:04:08.3]} 18... Kd8 {[%clk 0:04:01.9]} 19. Nf4 {[%clk 0:04:02.2]} 19...
Bd6 {[%clk 0:04:00]} 20. Nfxe6+ {[%clk 0:03:54.7]} 20... Bxe6 {[%clk 0:03:56.7]}
21. Nxe6+ {[%clk 0:03:54.6]} 21... Nxe6 {[%clk 0:03:54.1]} 22. Qxe8+ {[%clk
0:03:54.1]} 22... Kxe8 {[%clk 0:03:53.1]} 23. Rxe6+ {[%clk 0:03:54]} 23... Kd7
{[%clk 0:03:52.5]} 24. Rg6 {[%clk 0:03:52.3]} 24... Rxb2 {[%clk 0:03:50.3]} 25.
Rxg7+ {[%clk 0:03:51.1]} 25... Kc6 {[%clk 0:03:48.9]} 26. c4 {[%clk 0:03:49.7]}
26... Rc2 {[%clk 0:03:47.4]} 27. Rg4 {[%clk 0:03:48.3]} 27... Be5 {[%clk
0:03:45.8]} 28. Re1 {[%clk 0:03:45.9]} 28... Bc3 {[%clk 0:03:44.1]} 29. Rf1
{[%clk 0:03:40]} 29... Rxa2 {[%clk 0:03:41.2]} 30. f4 {[%clk 0:03:39.2]} 30...
Kd7 {[%clk 0:03:39.1]} 31. f5 {[%clk 0:03:37.7]} 31... a5 {[%clk 0:03:36.9]} 32.
f6 {[%clk 0:03:37]} 32... Ra1 {[%clk 0:03:34.7]} 33. f7 {[%clk 0:03:33.2]} 33...
Rxf1+ {[%clk 0:03:32.2]} 34. Kxf1 {[%clk 0:03:33.1]} 34... Ke7 {[%clk
0:03:30.4]} 35. Rf4 {[%clk 0:03:31.6]} 35... Kf8 {[%clk 0:03:27.6]} 36. Rf3
{[%clk 0:03:30.6]} 36... Be5 {[%clk 0:03:25.8]} 37. h4 {[%clk 0:03:29.1]} 37...
a4 {[%clk 0:03:22.8]} 38. h5 {[%clk 0:03:28.3]} 38... Bb2 {[%clk 0:03:20.4]} 39.
Rf6 {[%clk 0:03:13.1]} 39... Bxf6 {[%clk 0:03:15.2]} 40. g3 {[%clk 0:03:08.7]}
40... a3 {[%clk 0:03:10.8]} 0-1